Cogmind - Beta 15 @@@ ROGUE MODE // 2025.05.28 @ 14:52:07 Player: BVrutally Odd Result: Destroyed by S8-I1J(R) with Subdweller Shrapnel Launcher Performance ------------- Evolutions (0) 0 Regions Visited (2) 400 Robots Destroyed (29) 145 Value Destroyed (657) 657 Prototype IDs (0) 0 Alien Tech Used (0) 0 Bonus (0) 0 TOTAL SCORE: 1202 Bonus ------- None Cogmind --------- Core Integrity 0/250 Matter 205/300 Energy 198/200 System Corruption 0% Temperature Cool (0) Movement Rolling (160) Ox5 Location -10/Subcaves Parts ------- > --- POWER (1) -------- Subdweller Power Source > --- PROPULSION (2) --- Subdweller Monowheel Subdweller Monowheel > --- UTILITY (2) ------ Humpback > --- WEAPON (2) ------- Makeshift Laser Subdweller Machine Gun > --- INVENTORY (35) --- Subdweller Power Source Subdweller Power Source Light Treads Light Treads Spiked Treads Makeshift Leg Compact Wheel Subdweller Monowheel Disposable Heat Sink Small Storage Unit Subdweller Optics Seismic Detector Scrap Shield Subdweller Laser Battle Rifle Subdweller Machine Gun Subdweller Machine Gun Subdweller Machine Gun Mining Claw Scrap Shield Fragment (47) Peak State ------------ > --- POWER ------------ Subdweller Power Source > --- PROPULSION ------- Subdweller Monowheel Subdweller Monowheel > --- UTILITY ---------- Humpback > --- WEAPON ----------- Makeshift Laser Subdweller Machine Gun > --- INVENTORY -------- Subdweller Power Source Subdweller Power Source Light Treads Light Treads Spiked Treads Makeshift Leg Compact Wheel Subdweller Monowheel Disposable Heat Sink Small Storage Unit Subdweller Optics Seismic Detector Scrap Shield Subdweller Laser Battle Rifle Subdweller Machine Gun Subdweller Machine Gun Subdweller Machine Gun Mining Claw Scrap Shield Fragment [Rating: 17] Favorites ----------- Power Light Ion Engine Engine Light Ion Engine Propulsion Light Treads Treads Light Treads Wheel Subdweller Monowheel Utility Small Storage Unit Device Seismic Detector Storage Small Storage Unit Protection Scrap Shield Weapon Subdweller Machine Gun Energy Gun Medium Laser Ballistic Gun Subdweller Machine Gun Slashing Weapon Mining Claw Build | -11 -10 -10 ------- Run | Yrd Mat Sub Slots Evolved . | . . . Power . | . . . Propulsion . | . . . Utility . | . . . Weapon . | . . . Parts Attached 30 | 7 1 22 Power 5 | 1 1 3 Engine 5 | 1 1 3 Core . | . . . Reactor . | . . . Propulsion 10 | 2 . 8 Treads 6 | 2 . 4 Leg . | . . . Wheel 4 | . . 4 Hover . | . . . Flight . | . . . Utility 5 | 2 . 3 Device 2 | 1 . 1 Storage 2 | 1 . 1 Processor . | . . . Hackware . | . . . Protection 1 | . . 1 Artifact . | . . . Weapon 10 | 2 . 8 Energy Gun 2 | 1 . 1 Energy Cannon . | . . . Ballistic Gun 7 | 1 . 6 Ballistic Cannon . | . . . Launcher . | . . . Special Weapon . | . . . Impact Weapon . | . . . Slashing Weapon 1 | . . 1 Piercing Weapon . | . . . Special Melee Weapon . | . . . Unidentified Prototypes . | . . . Parts Lost 9 | . 1 8 Power 4 | . 1 3 Propulsion 2 | . . 2 Utility 1 | . . 1 Weapon 2 | . . 2 Highest Loss Streak 3 | . 1 3 To Critical Strikes . | . . . Average Backups 8 | 1 5 9 Power . | . . . Propulsion 2 | . 2 2 Utility 1 | . 1 1 Weapon 4 | . 2 4 Tool/Special . | . . . Unused Backups 13 | . . 13 Power 2 | . . 2 Propulsion 2 | . . 2 Utility 3 | . . 3 Weapon 6 | . . 6 Tool/Special . | . . . Average Slot Usage (%) 91 | . 98 90 Engine 13 | . 12 13 Treads 22 | . 28 21 Wheel 5 | . . 6 Device 7 | . 14 6 Storage 12 | . 14 11 Protection 1 | . . 1 Energy Gun 3 | . 14 2 Ballistic Gun 23 | . 14 24 Peak Build Rating 17 | 7 7 17 Average Rating 11 | 6 6 12 On Entrance 4 | . 7 7 Naked Turns . | . . . Heaviest Build 211 | 15 15 211 Greatest Support 40 | 40 40 40 Greatest Overweight (x) 13 | . . 13 Average Overweight (x) 2 | . . 2 Largest Inventory Capacity 35 | 8 8 35 Average Capacity 15 | 7 8 17 Most Carried 22 | 4 8 22 Average Carried 9 | 1 5 10 Final Capacity 35 | 8 8 35 Final Carried 21 | 4 8 21 Class Distribution -------------------- 37% | Mutant 29% | Hauler-Mutant 26% | Scavenger-Mutant 6% | Subdweller-Mutant Dominant Class ---------------- Mutant | -10/Materials Hauler-Mutant | -10/Subcaves Resources | -11 -10 -10 ----------- Run | Yrd Mat Sub Matter Collected 912 | 303 124 485 Remotely . | . . . Salvage Created 990 | 151 357 482 Parts 55 | 11 22 22 Haulers Intercepted 2 | . 2 . Recyclers Shooed 2 | 1 1 . Parts Field Recycled . | . . . Retrieved Matter . | . . . Parts Self-Destructed 8 | . . 8 Prevented . | . . . Kills | -11 -10 -10 ------- Run | Yrd Mat Sub Combat Hostiles Destroyed 22 | . 11 11 Guns 22 | . 11 11 Classes Destroyed 9 | 3 4 2 Worker 1 | 1 . . Tunneler 2 | 2 . . Hauler 2 | . 2 . Recycler 1 | 1 . . Operator 1 | . 1 . Swarmer 8 | . 8 . Grunt 4 | . 3 1 Artisan 1 | . . 1 Subdweller 10 | . . 10 Best Kill Streak 4 | 2 4 1 Combat Bots Only 4 | . 4 1 Max Kills in Single Turn 1 | 1 1 1 Gunslinging . | . . . Exploded . | . . . Melee . | . . . Uniques/NPCs Destroyed . | . . . Combat | -11 -10 -10 -------- Run | Yrd Mat Sub Hostile Shots Fired 146 | . 68 78 Missed 37 | . 18 19 Hits 109 | . 50 59 Projectile 109 | . 50 59 AOE 1 | . . 1 Critical Strikes 2 | . . 2 Damage Taken 1798 | . 444 1354 Core 262 | . 59 203 Absorbed by Shields . | . . . Core Remaining (%) 100 | 100 . . Volleys Fired 123 | 11 42 70 Largest 2 | 2 2 2 Hottest 178 | 70 70 178 Shots Fired 243 | 22 84 137 Gun 243 | 22 84 137 Cannon . | . . . Launcher . | . . . Special . | . . . Kinetic 172 | 11 42 119 Thermal 71 | 11 42 18 Explosive . | . . . Electromagnetic . | . . . Robot Hit Streak 18 | 4 11 18 Robot Miss Streak 3 | 2 3 3 Penetration Max . | . . . Secondary Targets 4 | . 4 . Max Gunslinging Chain 1 | . 1 . Shots Hit Robots 156 | 14 54 88 Core Hits 52 | 5 24 23 Critical Kills . | . . . Critical Parts Destroyed 1 | . . 1 Critical Strikes 10 | . 7 3 Burn 7 | . 7 . Destroy 3 | . . 3 Melee Attacks 13 | . . 13 Impact . | . . . Slashing 13 | . . 13 Piercing . | . . . Sneak Attacks . | . . . Combat Hostiles . | . . . Follow-up Attacks . | . . . Damage Inflicted 2387 | 171 686 1530 Guns 2380 | 171 679 1530 Cannons . | . . . Explosions . | . . . Melee . | . . . Ramming 7 | . 7 . Kinetic 1761 | 47 367 1347 Thermal 619 | 124 312 183 Explosive . | . . . Electromagnetic . | . . . Impact . | . . . Slashing . | . . . Piercing . | . . . Highest Corruption . | . . . Average Corruption . | . . . Corruption Purged . | . . . Corruption Blocked . | . . . Overload Shots 2 | . . 2 Effects 1 | . . 1 Heat Surge 1 | . . 1 Overflow Damage . | . . . Projectiles . | . . . Explosions . | . . . Melee . | . . . Knockbacks . | . . . Impact . | . . . Kinetic . | . . . Secondary . | . . . Self-Inflicted Damage . | . . . Shots . | . . . Rammed 2 | . 2 . Targets Rammed 2 | . 2 . Kicked . | . . . Crushed . | . . . Highest Temperature 297 | 27 165 297 Average Temperature 49 | 12 44 153 Received Heat Transfer 225 | . 108 117 Siege Activations . | . . . Martial Activations . | . . . Shielding Activations . | . . . Robots Disrupted . | . . . Combat Hostiles . | . . . Robots Corrupted . | . . . Combat Hostiles . | . . . Parts Fried . | . . . Impact Corruptions . | . . . Robots Melted . | . . . Combat Hostiles . | . . . Parts Melted 1 | . . 1 Heat Transferred 2294 | 370 1443 481 Parts Sabotaged . | . . . Parts Stolen . | . . . Parts Stripped . | . . . Power Chain Reactions . | . . . Alert | -11 -10 -10 ------- Run | Yrd Mat Sub Maximum Alert Level . | . . . Low Security (%) 100 | 100 100 . Level 1 . | . . . Level 2 . | . . . Level 3 . | . . . Level 4 . | . . . Level 5 . | . . . High Security . | . . . Max Security . | . . . Peak Influence 105 | 10 105 . Initial . | . . . Average 27 | 1 36 . Influence Increases 339 | 20 299 20 Destroy 0b10 Robot/C 240 | . 220 20 Destroy 0b10 Robot/NC 35 | 20 15 . Destroy Leader 44 | . 44 . Successful Hack 4 | . 4 . Destroy Structure 1 | . 1 . Lose Combat Pursuer 15 | . 15 . Influence Decreases 339 | 20 261 58 Entered New Map 19 | . . 19 Time Decay 245 | 20 186 39 Lost Part 10 | . 10 . Purge Threat 65 | . 65 . Squads Dispatched 1 | . 1 . Investigation . | . . . Extermination . | . . . Reinforcement 1 | . 1 . Assault . | . . . Garrison . | . . . Intercept . | . . . Searches Triggered . | . . . Construction Impeded . | . . . Haulers Reinforced . | . . . Active Scanning Responses . | . . . Cargo Convoy Interrupts . | . . . Stealth | -11 -10 -10 --------- Run | Yrd Mat Sub Distress Signals 1 | . 1 . Communications Jammed . | . . . Distress Signals . | . . . Times Spotted 33 | . 20 13 Peak Tracking Total 7 | . 7 2 Tactical Retreats 1 | . 1 . Traps | -11 -10 -10 ------- Run | Yrd Mat Sub Traps Triggered 1 | . . 1 Indirectly . | . . . Trap Hack Attempts . | . . . Triggered . | . . . Disarmed . | . . . Reprogrammed . | . . . Reused . | . . . Traps Extracted . | . . . Installed . | . . . Triggered . | . . . Machines | -11 -10 -10 ---------- Run | Yrd Mat Sub Machines Disabled . | . . . Max in Single Turn . | . . . Machines Repaired . | . . . Machines Dismantled . | . . . Machines Sabotaged . | . . . Overloaded Fab Kills . | . . . Hacking | -11 -10 -10 --------- Run | Yrd Mat Sub Machines Accessed 3 | . 2 1 Terminals 2 | . 2 . Fabricators . | . . . Repair Stations . | . . . Recycling Units . | . . . Scanalyzers . | . . . Garrison Access . | . . . Total Hacks 9 | . 5 4 Successful 7 | . 3 4 Failed 2 | . 2 . Catastrophic . | . . . Database Lockouts . | . . . Manual . | . . . Terminals 5 | . 5 . Fabricators . | . . . Repair Stations . | . . . Recycling Units . | . . . Scanalyzers . | . . . Garrison Access . | . . . Terminal Hacks 7 | . 3 4 Record 4 | . . 4 Alert Level 1 | . 1 . Unreport Threat 1 | . 1 . Locate Traps 1 | . 1 . Fabricator Hacks . | . . . Repair Station Hacks . | . . . Recycling Unit Hacks . | . . . Scanalyzer . | . . . Garrison Access Hacks . | . . . Unauthorized Hacks . | . . . Terminals . | . . . Fabricators . | . . . Repair Stations . | . . . Recycling Units . | . . . Scanalyzers . | . . . Garrison Access . | . . . Data Cores Recovered . | . . . Used . | . . . Hacking Detections 1 | . 1 . Full Trace Events . | . . . Feedback Events . | . . . Feedback Blocked . | . . . Robot Schematics Acquired . | . . . Robots Built . | . . . Authchips . | . . . Time . | . . . Total Robot Build Rating . | . . . Part Schematics Acquired . | . . . Parts Built . | . . . Authchips . | . . . Time . | . . . Total Part Build Rating . | . . . Parts Repaired . | . . . Time . | . . . Parts Recycled . | . . . Recycled Matter . | . . . Retrieved Matter . | . . . Retrieved Components . | . . . Parts Scanalyzed . | . . . Part Schematics Acquired . | . . . Parts Damaged . | . . . Bothacking | -11 -10 -10 ------------ Run | Yrd Mat Sub Used RIF Installer . | . . . Robots Hacked . | . . . Non-combat . | . . . Combat . | . . . Robot Hacks Applied . | . . . Relay Couplers Released . | . . . Fabnet Peak Effective % . | . . . Robots Rewired . | . . . Allies Hacked . | . . . Hacks Repelled . | . . . Allies | -11 -10 -10 -------- Run | Yrd Mat Sub Total Allies . | . . . Largest Group . | . . . Highest-Rated Group . | . . . Highest-Rated Ally . | . . . Total Orders . | . . . Ally Attacks . | . . . Total Damage . | . . . Kills . | . . . Allies Corrupted . | . . . Allies Melted . | . . . Intel | -11 -10 -10 ------- Run | Yrd Mat Sub Active Infowar (turns) 1981 | 107 481 1393 Seismic 1981 | 107 481 1393 Robot Analysis Total . | . . . Derelict Logs Recovered 1 | . . 1 Drone Launches . | . . . Drone Recoveries . | . . . Exploration | -11 -10 -10 ------------- Run | Yrd Mat Sub Turns Passed 3729 | 161 481 3087 Spaces Moved 1627 | 72 205 1350 Core 2 | 2 . . Treads 1339 | 70 205 1064 Legs . | . . . Wheels 286 | . . 286 Hover . | . . . Flight . | . . . Fastest Speed 50 | 50 160 160 Average Speed 190 | 156 160 196 Slowest Speed 610 | 160 160 610 Overloaded Moves . | . . . Propulsion Burnouts . | . . . Robots Hopped . | . . . Potential Cave-ins . | . . . Cave-ins Triggered . | . . . Exploration Rate (%) 35 | 5 44 58 Regions Visited 2 Branch Regions 1 Pre-discovered Areas 2 | . . 2 Known Exits Taken . | . . . Unknown Exits Taken 2 | 1 1 . Scrap Searched 3 | . . 3 Spaces Dug 1 | . . 1 Terrain Destroyed 3 | . . 3 Melee 1 | . . 1 Projectile 2 | . . 2 AOE . | . . . Terrain Rammed . | . . . Walls Destroyed . | . . . Machines Disabled . | . . . Actions | -11 -10 -10 --------- Run | Yrd Mat Sub Total 1992 | 95 272 1625 Wait 135 | 2 19 114 Move 1625 | 71 204 1350 Hop . | . . . Pick Up 35 | 4 4 27 Fast Attach 15 | 7 1 7 Attach 7 | . . 7 Detach 1 | . . 1 Swap 16 | . . 16 Drop 15 | . . 15 Fire 123 | 11 42 70 Melee 13 | . . 13 Ram . | . . . Kick . | . . . Crush 2 | . 2 . Escape Stasis . | . . . Rewire . | . . . Trap . | . . . Miscellaneous 5 | . . 5 Route ------- -11/Scrapyard -10/Materials (discovered 2 exits: [*Mat] / *Sub) -10/Subcaves (discovered 2 exits: [*Mat] / [*Scr]) History --------- Turn | Location | Event 16 | -11/Scrapyard | Discovered new exit (range 15) 162 | -11/Scrapyard | Entered Materials 315 | -10/Materials | Build established: Mutant 349 | -10/Materials | Discovered new exit (range 8) 635 | -10/Materials | Discovered new exit (range 6) 643 | -10/Materials | Entered Subcaves 644 | -10/Subcaves | Approached by a straggling Scientist 651 | -10/Subcaves | Learned Materials emergency access door positions 768 | -10/Subcaves | Visited Clippyterm 773 | -10/Subcaves | Learned location of Extension (-4) 773 | -10/Subcaves | Learned Factory fabricator intel 820 | -10/Subcaves | Shifting Twisted Machinery released Sub. Optics 1446 | -10/Subcaves | Scientist uncovered a shortcut to Scraptown 1497 | -10/Subcaves | Shifting Twisted Machinery released Sub. Laser 1533 | -10/Subcaves | Ambushed by Subdweller buried in earth 1544 | -10/Subcaves | Core integrity fell below 50% 1593 | -10/Subcaves | Shifting Twisted Machinery released Battle Rifle 2002 | -10/Subcaves | Build established: Scavenger-Mutant 2143 | -10/Subcaves | Discovered new exit (range 12) 2147 | -10/Subcaves | A swath of the cavern ceiling suddenly collapsed 2304 | -10/Subcaves | Ambushed by angry Subdweller bent on revenge 2341 | -10/Subcaves | A swath of the cavern ceiling suddenly collapsed 2457 | -10/Subcaves | Learned location of Zion (-6) 2457 | -10/Subcaves | Met a Zionite searching for "candidates" 2508 | -10/Subcaves | Disturbed a concealed Subdweller 2945 | -10/Subcaves | Build established: Hauler-Mutant 3544 | -10/Subcaves | Shifting Twisted Machinery released Mak. Leg 3571 | -10/Subcaves | Core integrity fell below 20% 3625 | -10/Subcaves | Lost 3 parts (1p2w) 3730 | -10/Subcaves | Destroyed by S8-I1J(R) with Subdweller Shrapnel Launcher Last Messages --------------- 03426_ Acquired 3 matter. Mak. Leg falls loose from the Twisted Machinery. 03574_ Lgt. Ion Engine destroyed. 03575_ Sub. Machine Gun destroyed. 03579_ K4-PY0(R) destroyed. 03582_ Overload: Heat surge (+166). 03586_ W3-RGL(R) affixes Scrap Shield Fragment to Scrap Shield. 03594_ Barrage Gun destroyed. 03600_ W3-RGL(R) destroyed. 03603_ Acquired 55 matter. 03610_ Subatomizers dissect the Disposable Heat Sink. 03616_ Acquired Sub. Monowheel. 03620_ Acquired Sub. Machine Gun. 03625_ Subatomizers dissect the Disposable Heat Sink. 03625_ Acquired Sub. Machine Gun. 03626_ Acquired 35 matter. 03643_ Acquired Mak. Leg. Map ----- +----------------------------------------------------+ | ???????????????????????????????????????????? | | ???????????????????????????????????????????? | | ??????????????????????????????? ???????????? | | ???????????????????####?##???? ???????????? | | ???????????????????#""# ????? ??##???????? | | ???????????????????#"" ???????" ## #???????? | | ??????????????????## #?????? "" ????????? | | ??????????????????# #??????#"" ????????? | | ??????????????????## #???????"" ????????? | | ??????????????????# ####"???# #????????? | | ??????????????????## "# ""#?# ?????????? | | ??????????????????## ## """## ??###????? | | ??????????????????# #" "" ##?# #????? | | ??????????????????# #" ""## ### ###### | | ?????????????????## "" """## ## ## # | | ?????????????????# """"""### ! & | | ?????????????????# ##"""""# # ! | | ?????????????????## ####""""# # # | | ?????????????????# """ #"#"#""" | | ?????????????????# ## # ####""" | | ????????????????## ##### ### """ # | | ??????????????### #???####?## "" #### | | ??????????????# #?????????# """ #??# | | ?????????# # #< ;#??####???# "" #?## | | ??????????# &R ;??# ##??###" """#?#" | | ?????????#$ "##< @;## #????### """#?# | | ?????????# ?# #??????##""#??#" | | ??????????#??## ## #????????"##??# | | ??????????????# #### #?????????#???## | | ??????????????# #??########??????????????# | | ??????????????# ????????????????????????? | | ??????????????## ????????????????????????? | | ???????????????#####???????????????????????? | | ???????????????????????????????????????????? | | ???????????????????????????????????????????? | | ???????????????????????????????????????????? | | ???????????????????????????????????????????? | | ???????????????????????????????????????????? | | ???????????????????????????????????????????? | | ?????????????????###???????????????????????? | | ????????????????## #???????????????????????? | | ?????????###??### #???????????????????????? | | ?????????#%#### #???????????????????????? | | ?????????# "# #" # ##???????###????????????? | | ?????????#%%# # ####???## ###??????????? | | ?????????#" # #" ## #??## ##?????????? | | ?????????## "## #### ##????????? | | ??????????###### # # # #????????? | | ???????????????# ### #?????????? | | ???????????????####?# ## ### #?????????? | +----------------------------------------------------+ Best States ------------- Heat Dissipation 25 Energy Generation 15 Energy Capacity 250 Matter Stores 300 Matter Capacity 300 Sight Range 16 Terrain Scan Density 10 Armor Coverage 800 Evasion (%) 40 Recoil Reduction 2 Item Schematics ----------------- None Robot Schematics ------------------ None Fabricated ------------ Nothing Repaired ---------- Nothing Alien Tech Used ----------------- None Achievements -------------- None Challenges ------------ None Game ------ Seed BladeRiotChronowheel Manual? 0 Play Time 00:18:18 Cumulative 330.2 hours Start 2025.05.28 @ 14:37:16 End 2025.05.28 @ 14:52:07 Sessions 1 Manual Loads 0 Difficulty Rogue Special Mode None Game No. 160 Rogue 97 Adventurer 16 Explorer 47 Win Type - Total 42 Types 24/5/6/1/0/1/2/1/1/1 Lore% 92 Gallery% 88 Achievement% 83 Wizard Run 0 Options --------- Layout 2 ASCII 0 Keyboard 0 Movement Mouse Keybinds 0 Fullscreen 1 Font 32/Tamsyn Map View 50x44 Zoom Use 0% Tactical HUD 1 Map Filters NONE Filters NONE Steam 1 RUN: 2611a258-c4ae-41a9-abba-829f61731166